fUST/lending_fUST_20241228
["ID","MTS","AMOUNT","RATE_DAILY","PERIOD"]
[346887997,1735342158054,-500.0,0.0001045,2]
[346887998,1735342158105,-376.05484492,0.0001045,2]
[346887999,1735342158151,-500.0,0.0001045,2]
[346888000,1735342158191,-500.0,0.0001045,2]
[346888001,1735342158232,-500.0,0.0001045,2]
[346888002,1735342158272,-500.0,0.0001045,2]
[346888003,1735342158314,-500.0,0.0001045,2]
[346888004,1735342158354,-500.0,0.0001045,2]
[346888005,1735342158398,-500.0,0.0001045,2]
[346888006,1735342158440,-551.45441714,0.0001045,2]
[346888007,1735342158483,-500.0,0.0001045,2]
[346888008,1735342158522,-500.0,0.0001045,2]
[346888009,1735342158567,-500.0,0.0001045,2]
[346888010,1735342158606,-500.0,0.0001045,2]
[346888011,1735342158652,-561.05,0.0001045,2]
[346888012,1735342158692,-544.12943854,0.0001045,2]
[346888013,1735342158739,-500.0,0.0001045,2]
[346888014,1735342158781,-500.0,0.00010451,2]
[346888015,1735342158826,-500.0,0.00010451,2]
[346888016,1735342158869,-500.0,0.00010451,2]
[346888017,1735342158913,-258.77713232,0.00010451,2]
[346888018,1735342158954,-500.0,0.00010451,2]
[346888019,1735342158997,-500.0,0.00010451,2]
[346888020,1735342159037,-500.0,0.00010451,2]
[346888021,1735342159079,-500.0,0.00010451,2]
[346888022,1735342159119,-500.0,0.00010451,2]
[346888023,1735342159160,-500.0,0.00010451,2]
[346888024,1735342159200,-500.0,0.00010451,2]
[346888025,1735342159240,-500.0,0.00010451,2]
[346888026,1735342159283,-1305.34,0.00010451,2]
[346888027,1735342159323,-610.12822313,0.00010451,2]
[346888028,1735342159365,-500.0,0.00010451,2]
[346888029,1735342159410,-500.0,0.00010451,2]
[346888030,1735342159459,-506.0,0.00010451,2]
[346888031,1735342159503,-500.0,0.00010451,2]
[346888032,1735342159550,-500.0,0.00010451,2]
[346888033,1735342159592,-500.0,0.00010451,2]
[346888034,1735342159636,-500.0,0.00010451,2]
[346888035,1735342159678,-500.0,0.00010451,2]
[346888036,1735342159724,-500.0,0.00010451,2]
[346888037,1735342159768,-500.0,0.00010451,2]
[346888038,1735342159816,-500.0,0.00010451,2]
[346888039,1735342159862,-500.0,0.00010451,2]
[346888040,1735342159916,-500.0,0.00010451,2]
[346888041,1735342159966,-500.0,0.00010451,2]
[346888042,1735342160021,-500.0,0.00010451,2]
[346888043,1735342160073,-500.0,0.00010451,2]
[346888044,1735342160124,-500.0,0.00010452,2]
[346888045,1735342160179,-190.36886395,0.00010452,2]
[346888046,1735342160228,-500.0,0.00010452,2]
[346888047,1735342160279,-500.0,0.00010452,2]
[346888048,1735342160333,-500.0,0.00010453,2]
[346888049,1735342160384,-500.0,0.00010453,2]
[346888050,1735342160437,-500.0,0.00010453,2]
[346888051,1735342160490,-500.0,0.00010453,2]
[346888052,1735342160536,-194.67016423,0.00010453,2]
[346888053,1735342160582,-1000.0,0.00010453,2]
[346888054,1735342160628,-931.31,0.00010614,2]
[346888055,1735342160673,-500.0,0.00010723,2]
[346888056,1735342160721,-528.55,0.00010724,2]
[346888057,1735342160766,-500.0,0.00010724,2]
[346888058,1735342160813,-500.0,0.00010724,2]
[346888059,1735342160866,-382.34507605,0.00010724,2]
[346888060,1735342160912,-500.0,0.00010724,2]
[346888061,1735342160961,-500.0,0.00010724,2]
[346888062,1735342161009,-500.0,0.00010724,2]
[346888063,1735342161061,-500.0,0.00010724,2]
[346888064,1735342161107,-500.0,0.00010724,2]
[346888065,1735342161156,-500.0,0.00010724,2]
[346888066,1735342161202,-596.69858382,0.00010724,2]
[346888067,1735342161251,-561.05,0.00010724,2]
[346888068,1735342161296,-500.0,0.00010724,2]
[346888069,1735342161342,-500.0,0.00010725,2]
[346888070,1735342161385,-500.0,0.00010725,2]
[346888071,1735342161433,-500.0,0.00010725,2]
[346888072,1735342161559,-391.87,0.00010725,2]
[346888074,1735342161602,-500.0,0.00010725,2]
[346888075,1735342161642,-500.0,0.00010725,2]
[346888076,1735342161685,-500.0,0.00010725,2]
[346888077,1735342161727,-1305.34,0.00010725,2]
[346888078,1735342161770,-500.0,0.00010725,2]
[346888079,1735342161810,-500.0,0.00010725,2]
[346888080,1735342161852,-500.0,0.00010725,2]
[346888081,1735342161892,-500.0,0.00010725,2]
[346888082,1735342161934,-500.0,0.00010725,2]
[346888083,1735342161979,-500.0,0.00010725,2]
[346888084,1735342162021,-500.0,0.00010725,2]
[346888085,1735342162065,-500.0,0.00010725,2]
[346888086,1735342162107,-500.0,0.00010725,2]
[346888087,1735342162149,-500.0,0.00010725,2]
[346888088,1735342162188,-500.0,0.00010725,2]
[346888089,1735342162231,-500.0,0.00010726,2]
[346888090,1735342162273,-500.0,0.00010726,2]
[346888091,1735342162322,-212.9,0.00010726,2]
[346888092,1735342162364,-135.89812775,0.00010727,2]
[346888093,1735342162577,-500.0,9.902e-05,2]
[346888094,1735342162598,-500.0,0.00010176,2]
[346888095,1735342162619,-180.54230912,0.00010352,2]
[346888096,1735342162639,-500.0,0.0001045,2]
[346888097,1735342162659,-167.37,0.00010724,2]
[346888098,1735342162681,-364.10187225,0.00010727,2]
[346888099,1735342162702,-500.0,0.00010727,2]
[346888100,1735342162722,-465.40165708,0.00010727,2]
[346888101,1735342162743,-500.0,0.00010727,2]
[346888102,1735342162765,-931.31,0.00010888,2]
[346888103,1735342162786,-420.0,0.00010891,2]
[346888104,1735342162806,-11337.5124008,0.00010959,2]
[346888105,1735342162826,-517.14882992,0.00010997,2]
[346888106,1735342162847,-500.0,0.00010998,2]
[346888107,1735342162868,-619.64,0.00010998,2]
[346888108,1735342162889,-500.0,0.00010998,2]
[346888109,1735342162911,-500.0,0.00010998,2]
[346888110,1735342162933,-500.0,0.00010998,2]
[346888111,1735342162954,-185.76577786,0.00010998,2]
[346888112,1735342162976,-561.05,0.00010998,2]
[346888113,1735342162997,-500.0,0.00010998,2]
[346888114,1735342163016,-500.0,0.00010999,2]
[346888115,1735342163038,-455.44,0.00010999,2]
[346888116,1735342163058,-500.0,0.00010999,2]
[346888117,1735342163079,-500.0,0.00010999,2]
[346888118,1735342163099,-500.0,0.00010999,2]
[346888119,1735342163121,-1305.34,0.00010999,2]
[346888120,1735342163142,-500.0,0.00010999,2]
[346888121,1735342163163,-500.0,0.00010999,2]
[346888122,1735342163184,-500.0,0.00010999,2]
[346888123,1735342163205,-500.0,0.00010999,2]
[346888124,1735342163227,-500.0,0.00010999,2]
[346888125,1735342163248,-500.0,0.00010999,2]
[346888126,1735342163269,-515.72635992,0.00010999,2]
[346888127,1735342163289,-315.58191737,0.00010999,2]
[346888128,1735342163310,-500.0,0.00010999,2]
[346888129,1735342163331,-500.0,0.00010999,2]
[346888130,1735342163352,-500.0,0.00010999,2]
[346888131,1735342163373,-500.0,0.00011,2]
[346888132,1735342163394,-500.0,0.00011001,2]
[346888133,1735342163419,-500.0,0.00011001,2]
[346888134,1735342163441,-500.0,0.00011001,2]
[346888135,1735342163463,-931.31,0.00011162,2]
[346888136,1735342163485,-260.02,0.00011272,2]
[346888137,1735342163506,-317.65208545,0.00011272,2]
[346888138,1735342163529,-500.0,0.00011272,2]
[346888139,1735342163550,-500.0,0.00011272,2]
[346888140,1735342163574,-561.05,0.00011272,2]
[346888141,1735342163598,-500.0,0.00011272,2]
[346888142,1735342163618,-500.0,0.00011273,2]
[346888143,1735342163640,-500.0,0.00011273,2]
[346888144,1735342163663,-500.0,0.00011273,2]
[346888145,1735342163685,-1305.34,0.00011273,2]
[346888146,1735342163707,-500.0,0.00011273,2]
[346888147,1735342163730,-500.0,0.00011273,2]
[346888148,1735342163752,-500.0,0.00011273,2]
[346888149,1735342163777,-500.0,0.00011273,2]
[346888150,1735342163799,-500.0,0.00011273,2]
[346888151,1735342163823,-500.0,0.00011273,2]
[346888152,1735342163844,-500.0,0.00011273,2]
[346888153,1735342163866,-500.0,0.00011273,2]
[346888154,1735342163888,-500.0,0.00011273,2]
[346888155,1735342163909,-500.0,0.00011274,2]
[346888156,1735342163931,-500.0,0.00011275,2]
[346888157,1735342163953,-500.0,0.00011275,2]
[346888158,1735342163977,-500.0,0.00011275,2]
[346888159,1735342164002,-931.31,0.00011436,2]
[346888160,1735342164025,-500.0,0.00011546,2]
[346888161,1735342164048,-500.0,0.00011546,2]
[346888162,1735342164072,-561.05,0.00011546,2]
[346888163,1735342164095,-500.0,0.00011546,2]
[346888164,1735342164199,-500.0,0.00011547,2]
[346888165,1735342164222,-500.0,0.00011547,2]
[346888166,1735342164245,-1305.34,0.00011547,2]
[346888167,1735342164268,-500.0,0.00011547,2]
[346888168,1735342164290,-500.0,0.00011547,2]
[346888169,1735342164313,-500.0,0.00011547,2]
[346888170,1735342164335,-500.0,0.00011547,2]
[346888171,1735342164357,-500.0,0.00011547,2]
[346888172,1735342164378,-236.0,0.00011547,2]
[346888173,1735342164398,-500.0,0.00011548,2]
[346888174,1735342164424,-500.0,0.00011549,2]
[346888175,1735342164446,-500.0,0.00011549,2]
[346888176,1735342164468,-85.15664405,0.00011682,2]
[346888177,1735342164493,-160.744586,0.00011688,2]
[346888178,1735342164514,-160.744586,0.00011693,2]
[346888179,1735342164536,-160.744586,0.00011698,2]
[346888180,1735342164557,-160.744586,0.00011704,2]
[346888181,1735342164578,-160.744586,0.00011709,2]
[346888182,1735342164600,-931.31,0.0001171,2]
[346888183,1735342164621,-160.744586,0.00011714,2]
[346888184,1735342164643,-160.744586,0.0001172,2]
[346888185,1735342164664,-160.744586,0.00011725,2]
[346888186,1735342164685,-160.744586,0.0001173,2]
[346888187,1735342164707,-160.744586,0.00011736,2]
[346888188,1735342164730,-500.0,0.0001182,2]
[346888189,1735342164752,-500.0,0.0001182,2]
[346888190,1735342164775,-561.05,0.0001182,2]
[346888191,1735342164797,-500.0,0.0001182,2]
[346888192,1735342164821,-1305.34,0.00011821,2]
[346888193,1735342164843,-500.0,0.00011821,2]
[346888194,1735342164864,-500.0,0.00011821,2]
[346888195,1735342164886,-500.0,0.00011821,2]
[346888196,1735342164909,-500.0,0.00011821,2]
[346888197,1735342164931,-500.0,0.00011821,2]
[346888198,1735342164951,-500.0,0.00011822,2]
[346888199,1735342164973,-500.0,0.00011823,2]
[346888200,1735342164995,-500.0,0.00011823,2]
[346888201,1735342165016,-420.0,0.0001198,2]
[346888202,1735342165038,-931.31,0.00011984,2]
[346888203,1735342165061,-500.0,0.00012094,2]
[346888204,1735342165082,-500.0,0.00012094,2]
[346888205,1735342165103,-561.05,0.00012094,2]
[346888206,1735342165124,-500.0,0.00012094,2]
[346888207,1735342165148,-1305.34,0.00012095,2]
[346888208,1735342165170,-500.0,0.00012095,2]
[346888209,1735342165191,-500.0,0.00012095,2]
[346888210,1735342165213,-500.0,0.00012095,2]
[346888211,1735342165235,-500.0,0.00012095,2]
[346888212,1735342165256,-500.0,0.00012096,2]
[346888213,1735342165278,-500.0,0.00012097,2]
[346888214,1735342165300,-500.0,0.00012097,2]
[346888215,1735342165321,-248.36478617,0.00012258,2]
[346888216,1735342165441,-500.0,9.803e-05,2]
[346888217,1735342165535,-682.94521383,0.00012258,2]
[346888218,1735342165578,-500.0,0.00012368,2]
[346888219,1735342165623,-543.85822621,0.00012368,2]
[346888220,1735342165666,-561.05,0.00012368,2]
[346888221,1735342165712,-500.0,0.00012368,2]
[346888222,1735342165756,-1305.34,0.00012369,2]
[346888223,1735342165802,-500.0,0.00012369,2]
[346888224,1735342165845,-500.0,0.00012369,2]
[346888225,1735342165893,-500.0,0.00012369,2]
[346888226,1735342165937,-500.0,0.00012369,2]
[346888227,1735342165982,-500.0,0.0001237,2]
[346888228,1735342166026,-500.0,0.00012371,2]
[346888229,1735342166072,-500.0,0.00012371,2]
[346888230,1735342166117,-931.31,0.00012532,2]
[346888231,1735342166163,-503.29,0.00012642,2]
[346888232,1735342166207,-303.75056873,0.00012642,2]
[346888233,1735342166245,-257.29943127,0.00012642,2]
[346888234,1735342166269,-500.0,0.00012642,2]
[346888235,1735342166293,-1305.34,0.00012643,2]
[346888236,1735342166316,-500.0,0.00012643,2]
[346888237,1735342166339,-500.0,0.00012643,2]
[346888238,1735342166361,-500.0,0.00012643,2]
[346888239,1735342166387,-500.0,0.00012643,2]
[346888240,1735342166412,-500.0,0.00012644,2]
[346888241,1735342166437,-500.0,0.00012645,2]
[346888242,1735342166463,-500.0,0.00012645,2]
[346888243,1735342166487,-931.31,0.00012806,2]
[346888244,1735342166511,-561.05,0.00012916,2]
[346888245,1735342166534,-500.0,0.00012916,2]
[346888246,1735342166558,-1305.34,0.00012917,2]
[346888247,1735342166582,-500.0,0.00012917,2]
[346888248,1735342166605,-215.10628641,0.00012917,2]
[346888249,1735342166628,-501.91,0.00012917,2]
[346888250,1735342166650,-325.74,0.00012918,2]
[346888251,1735342166674,-500.0,0.00012919,2]
[346888252,1735342166697,-500.0,0.00012919,2]
[346888253,1735342166720,-931.31,0.0001308,2]
[346888254,1735342166744,-561.05,0.0001319,2]
[346888255,1735342166769,-500.0,0.0001319,2]
[346888256,1735342166793,-1305.34,0.00013191,2]
[346888257,1735342166816,-500.0,0.00013191,2]
[346888258,1735342166957,-500.0,0.00013193,2]
[346888259,1735342166983,-500.0,0.00013193,2]
[346888260,1735342167007,-931.31,0.00013354,2]
[346888261,1735342167031,-561.05,0.00013464,2]
[346888262,1735342167055,-500.0,0.00013464,2]
[346888263,1735342167080,-1305.34,0.00013465,2]
[346888264,1735342167103,-500.0,0.00013465,2]
[346888265,1735342167127,-500.0,0.00013467,2]
[346888266,1735342167149,-500.0,0.00013467,2]
[346888267,1735342167172,-931.31,0.00013628,2]
[346888268,1735342167194,-180.54230911,0.00013644,2]
[346888269,1735342167216,-565.408053,0.00013699,2]
[346888270,1735342167240,-561.05,0.00013738,2]
[346888271,1735342167265,-500.0,0.00013738,2]
[346888272,1735342167291,-1305.34,0.00013739,2]
[346888273,1735342167315,-529.39062432,0.00013739,2]
[346888274,1735342167338,-500.0,0.00013741,2]
[346888275,1735342167360,-500.0,0.00013741,2]
[346888276,1735342168382,1061.05,0.00012244,2]
[346888277,1735342180273,350.5817823,9.902e-05,2]
[346888278,1735342184068,305.78681312,0.00013741,2]
[346888279,1735342185949,500.0,9.903e-05,2]
[346888280,1735342186602,500.0,0.00010177,2]
[346888281,1735342186865,500.0,0.00010451,2]
[346888282,1735342187133,500.0,0.00010725,2]
[346888283,1735342187381,500.0,0.00010999,2]
[346888284,1735342187637,500.0,0.00011273,2]
[346888285,1735342187897,500.0,0.00011547,2]
[346888286,1735342188437,500.0,0.00011821,2]
[346888287,1735342188714,500.0,0.00012095,2]
[346888288,1735342189000,500.0,0.00012369,2]
[346888289,1735342189362,500.0,0.00012643,2]
[346888290,1735342189766,500.0,0.00012917,2]
[346888291,1735342207786,500.0,9.902e-05,2]
[346888292,1735342211570,500.0,9.902e-05,2]
[346888334,1735342232636,-500.0,0.00013191,2]
[346888336,1735342232646,-500.0,0.00013465,2]
[346888338,1735342232655,-500.0,0.00013739,2]
[346888340,1735342232664,-1694.21318688,0.00013741,2]
[346888342,1735342232674,-2000.0,0.0001388,2]
[346888344,1735342232683,-931.31,0.00013902,2]
[346888346,1735342232692,-400.0,0.00013973,2]
[346888348,1735342232701,-561.05,0.00014012,2]
[346888350,1735342232711,-500.0,0.00014012,2]
[346888352,1735342232720,-500.0,0.00014013,2]
[346888354,1735342232729,-469.48874328,0.00014015,2]
[346888627,1735342238618,-30.51125672,0.00014015,2]
[346888629,1735342238628,-500.0,0.00014015,2]
[346888631,1735342238638,-931.31,0.00014176,2]
[346888633,1735342238647,-561.05,0.00014286,2]
[346888635,1735342238656,-500.0,0.00014287,2]
[346888637,1735342238666,-500.0,0.00014289,2]
[346888639,1735342238675,-295.4701209,0.00014289,2]
[346888641,1735342238685,-931.31,0.0001445,2]
[346888643,1735342238695,-561.05,0.00014559,2]
[346888645,1735342238704,-500.0,0.00014561,2]
[346888647,1735342238714,-500.0,0.00014563,2]
[346888649,1735342238724,-931.31,0.00014724,2]
[346888651,1735342238733,-561.05,0.00014833,2]
[346888653,1735342238742,-500.0,0.00014835,2]
[346888655,1735342238752,-500.0,0.00014837,2]
[346888657,1735342238761,-931.31,0.00014998,2]
[346888659,1735342238771,-561.05,0.00015107,2]
[346888661,1735342238780,-500.0,0.00015109,2]
[346888663,1735342238790,-222.31481755,0.00015111,2]
[346888665,1735342238799,-931.31,0.00015272,2]
[346888667,1735342238810,-561.05,0.00015381,2]
[346888669,1735342238819,-500.0,0.00015383,2]
[346888671,1735342238828,-931.31,0.00015546,2]
[346888673,1735342238837,-561.05,0.00015655,2]
[346888675,1735342238847,-500.0,0.00015657,2]
[346888677,1735342238859,-931.31,0.0001582,2]
[346888679,1735342238869,-151.0,0.000159,2]
[346888681,1735342238879,-561.05,0.00015929,2]
[346888684,1735342238889,-500.0,0.00015931,2]
[346888686,1735342238898,-931.31,0.00016093,2]
[346888687,1735342238908,-561.16,0.00016203,2]
[346888689,1735342238918,-248.29034061,0.00016205,2]
[346888691,1735342238928,-169.26888639,0.00016267,2]
[346888693,1735342238938,-931.31,0.00016367,2]
[346888695,1735342238948,-500.0,0.00016438,2]
[346888698,1735342238958,-931.31,0.00016641,2]
[346888699,1735342238968,-331.747,0.00016642,2]
[346888702,1735342238979,-187.27555935,0.00016642,2]
[346888704,1735342238989,-151.0,0.000168,2]
[346888705,1735342238999,-931.37,0.00016915,2]
[346888707,1735342239008,-180.54230911,0.00016937,2]
[346888710,1735342239018,-169.26888639,0.00017588,2]
[346888711,1735342239027,-151.0,0.000176,2]
[346888713,1735342239036,-2029.22511467,0.000176,2]
[346888716,1735342239047,-500.0,0.00017808,4]
[346888718,1735342239056,-400.0,0.00017999,2]
[346888720,1735342239065,-511.57154131,0.00017999,2]
[346888722,1735342239075,-165.57715325,0.00017999,2]
[346888724,1735342239084,-455.6576133,0.00018,2]
[346888726,1735342239093,-15225.78570108,0.00018,2]
[346888728,1735342239104,-151.0,0.000185,2]
[346888730,1735342239114,-1675.9307956,0.000189,2]
[346888732,1735342239124,-169.26888639,0.00018908,2]
[346888734,1735342239133,-152.03294027,0.00018999,2]
[346888736,1735342239142,-5000.0,0.00019,2]
[346888738,1735342239151,-302.60665372,0.00019,2]
[346888740,1735342239160,-82997.09104448,0.00019,2]
[346888742,1735342239169,-302.60665372,0.00019,2]
[346888744,1735342239179,-500.0,0.00019178,2]
[346888746,1735342239188,-500.0,0.00019178,2]
[346888759,1735342239299,-500.0,0.00019178,2]
[346888761,1735342239310,-500.0,0.00019178,2]
[346888763,1735342239319,-500.0,0.00019178,2]
[346888765,1735342239329,-500.0,0.00019178,2]
[346888767,1735342239339,-500.0,0.00019178,2]
[346888769,1735342239348,-500.0,0.00019178,2]
[346888771,1735342239358,-500.0,0.00019178,2]
[346888773,1735342239369,-500.0,0.00019178,2]
[346888775,1735342239378,-500.0,0.00019178,2]
[346888778,1735342239388,-414.71260519,0.00019178,2]
[346888779,1735342239398,-500.0,0.00019178,6]
[346888781,1735342239407,-230.683066,0.00019178,2]
[346888783,1735342239416,-14247.5620923,0.00019178,11]
[346888785,1735342239430,-332.52134122,0.0001919,2]
[346888787,1735342239439,-302.60665372,0.0001919,2]
[346888789,1735342239449,-171471.463133,0.000192,2]
[346888791,1735342239458,-5000.0,0.00019209,7]
[346888793,1735342239468,-151.0,0.00019261,6]
[346888795,1735342239478,-766.628,0.000193,2]
[346888797,1735342239487,-450.8587857,0.00019342,2]
[346888799,1735342239496,-302.60665372,0.0001938,2]
[346888802,1735342239508,-151.0,0.000194,2]
[346888804,1735342239518,-4679.05994104,0.00019467,2]
[346888806,1735342239528,-216.8153346,0.00019479,2]
[346888808,1735342239537,-453.7740115,0.0001957,2]
[346888810,1735342239546,-151.0,0.00019613,7]
[346888812,1735342239555,-4457.38621074,0.0001978,7]
[346888814,1735342239564,-5000.0,0.00019798,7]
[346888816,1735342239573,-151.0,0.00019966,7]
[346888818,1735342239584,-19191.85373497,0.00019989,2]
[346888820,1735342239594,-40727.34645118,0.0001999,2]
[346888822,1735342239603,-3049.2281364,0.0002,2]
[346888824,1735342239612,-2500.0,0.00020044,2]
[346888826,1735342239621,-2130.13333964,0.00020044,2]
[346888828,1735342239630,-564.24,0.000201,2]
[346888830,1735342239639,-10310.54764679,0.00020113,2]
[346888832,1735342239648,-278.3264884,0.00020115,2]
[346888834,1735342239657,-982.90924478,0.00020199,2]
[346888836,1735342239666,-2007.17709976,0.000202,10]
[346888838,1735342239675,-1332.0,0.00020208,2]
[346888840,1735342239685,-500.0,0.00020218,2]
[346888842,1735342239694,-500.0,0.00020218,2]
[346888844,1735342239704,-180.54230911,0.00020229,2]
[346888845,1735342239713,-169.26888639,0.00020229,2]
[346888847,1735342239723,-206.99,0.00020233,2]
[346888849,1735342239732,-150.333,0.00020261,2]
[346888851,1735342239741,-535.306,0.00020261,2]
[346888853,1735342239750,-2143.0,0.00020261,2]
[346888855,1735342239759,-2390.999,0.00020261,2]
[346888857,1735342239768,-499.0,0.00020273,2]
[346888859,1735342239778,-151.0,0.00020296,2]
[346888861,1735342239787,-151.0,0.00020296,2]
[346888863,1735342239797,-151.0,0.00020296,2]
[346888865,1735342239807,-151.0,0.00020296,2]
[346888867,1735342239816,-151.0,0.00020296,2]
[346888869,1735342239825,-152.006909,0.00020296,2]
[346888872,1735342239835,-151.0,0.00020296,2]
[346888874,1735342239844,-151.0,0.00020296,2]
[346888876,1735342239856,-151.0,0.00020296,2]
[346888878,1735342239866,-151.0,0.00020296,2]
[346888880,1735342239875,-151.0,0.00020296,2]
[346888882,1735342239884,-151.0,0.00020296,2]
[346888884,1735342239894,-151.0,0.00020296,2]
[346888886,1735342239904,-151.0,0.00020296,2]
[346888888,1735342239913,-151.0,0.00020296,2]
[346888890,1735342239922,-151.0,0.00020296,2]
[346888892,1735342239932,-151.0,0.00020296,2]
[346888894,1735342239942,-151.0,0.00020296,2]
[346888896,1735342239952,-151.0,0.00020296,2]
[346888898,1735342239961,-151.0,0.00020296,2]
[346888900,1735342239971,-151.0,0.00020296,2]
[346888902,1735342239980,-151.0,0.00020296,2]
[346888904,1735342239989,-151.0,0.00020296,2]
[346888906,1735342239999,-151.0,0.00020296,2]
[346888908,1735342240008,-274.989392,0.00020296,2]
[346888910,1735342240017,-250.298357,0.00020296,2]
[346888912,1735342240027,-2000.0,0.000203,2]
[346888914,1735342240036,-1200.0,0.00020308,2]
[346888916,1735342240046,-355.73180257,0.00020318,2]
[346888918,1735342240055,-165.337159,0.00020319,10]
[346888920,1735342240064,-327.076,0.00020319,2]
[346888922,1735342240074,-151.0,0.00020319,7]
[346888924,1735342240083,-150.23,0.00020319,10]
[346888926,1735342240093,-500.0,0.00020319,10]
[346888928,1735342240103,-150.23,0.00020319,10]
[346888931,1735342240112,-214.7749613,0.00020319,10]
[346888933,1735342240123,-31254.1747809,0.00020329,2]
[346888934,1735342240131,-14772.20538667,0.00020329,2]
[346888942,1735342240188,1073.36059155,0.00010179,2]
[346888945,1735342240214,818.14940845,0.00010179,2]
[346888952,1735342240265,1891.51,0.00010453,2]
[346889051,1735342241225,-876.88808517,0.00020329,2]
[346889186,1735342243655,-1891.51,0.00010727,2]
[346889188,1735342243665,-1891.51,0.00011001,2]
[346889190,1735342243674,-2726.85475506,0.00020125,2]
[346889192,1735342243683,-1218.22311845,0.00020329,2]
[346889225,1735342246646,-1891.51,0.00011275,2]
[346889227,1735342246655,-1891.51,0.00011549,2]
[346889229,1735342246665,-1891.51,0.00011823,2]
[346889230,1735342246674,-1891.51,0.00012097,2]
[346889231,1735342246684,-2414.96579823,0.00020115,2]
[346889233,1735342246693,-9591.29088177,0.00020229,2]
[346889238,1735342250786,-32.66605601,0.00020229,2]
[346889239,1735342250797,-894.242857,0.00020229,2]
[346889240,1735342272330,500.0,9.901e-05,2]
[346889241,1735342272606,500.0,0.00010175,2]
[346889242,1735342272887,155.42083693,0.00010449,2]
[346889246,1735342342362,570.41,0.00010179,2]
[346889247,1735342342697,500.0,9.902e-05,2]
[346889248,1735342343016,570.41,0.00010453,2]
[346889249,1735342347246,500.0,9.902e-05,2]
[346889250,1735342350114,564.07,9.902e-05,2]
[346889251,1735342351223,500.0,9.905e-05,2]
[346889252,1735342423648,500.0,9.632e-05,2]
[346889254,1735342521787,250.0,9.177e-05,2]
[346889255,1735342524300,300.0,9.632e-05,2]
[346889256,1735342539341,159.4443236,9.632e-05,2]
[346889257,1735343084919,162.47820984,9.631e-05,2]
[346889258,1735343084947,137.52179016,9.631e-05,2]
[346889259,1735343100380,300.0,9.631e-05,2]
[346889260,1735343140145,-300.0,9.728e-05,2]
[346889261,1735343140167,-500.0,9.729e-05,2]
[346889262,1735343140188,-500.0,9.729e-05,2]
[346889263,1735343140212,-90.58648406,9.729e-05,2]
[346889264,1735343172849,161.3218005,8.816e-05,2]
[346889265,1735343228233,-300.0,9.728e-05,2]
[346889266,1735343228257,-585.87511532,9.729e-05,2]
[346889267,1735343228280,-93.72144159,9.729e-05,2]
[346889268,1735343235126,-406.27855841,9.729e-05,2]
[346889269,1735343235151,-57.34592279,9.729e-05,2]
[346889270,1735343236103,-278.59082977,9.729e-05,2]
[346889271,1735343239137,-73.47676338,9.729e-05,2]
[346889272,1735343239161,-500.0,9.729e-05,2]
[346889273,1735343239184,-500.0,9.729e-05,2]